Cogmind - Beta 15 @@@ ROGUE MODE // 2025.05.25 @ 19:40:49 Player: LightKnight Result: Destroyed by as-98666 with Assembled Blade Performance ------------- Evolutions (0) 0 Regions Visited (2) 400 Robots Destroyed (29) 145 Value Destroyed (612) 612 Prototype IDs (3) 60 Alien Tech Used (0) 0 Bonus (0) 0 TOTAL SCORE: 1217 Bonus ------- None Cogmind --------- Core Integrity 0/250 Matter 245/300 Energy 122/125 System Corruption 0% Temperature Warm (100) Movement Treading (160) Location -10/Mines Parts ------- > --- POWER (1) -------- Light Ion Engine > --- PROPULSION (2) --- Light Treads Light Treads > --- UTILITY (2) ------ Medium Storage Unit Targeting Computer > --- WEAPON (2) ------- Beam Cannon Light Assault Rifle > --- INVENTORY (10) --- Ion Engine Grenade Launcher Datajack Mining Laser Peak State ------------ > --- POWER ------------ Light Ion Engine > --- PROPULSION ------- Aluminum Leg Aluminum Leg > --- UTILITY ---------- Medium Storage Unit Targeting Computer > --- WEAPON ----------- Beam Cannon Assault Rifle > --- INVENTORY -------- Ion Engine Light Treads Light Treads Light Treads Beam Cannon Light Assault Rifle Grenade Launcher Grenade Launcher Datajack Mining Laser [Rating: 8] Favorites ----------- Power Ion Engine Engine Ion Engine Propulsion Aluminum Leg Treads Light Treads Leg Aluminum Leg Utility Targeting Computer Storage Small Storage Unit Processor Targeting Computer Weapon Beam Cannon Energy Cannon Beam Cannon Ballistic Gun Assault Rifle Launcher Grenade Launcher Build | -11 -10 -10 ------- Run | Yrd Mat Min Slots Evolved . | . . . Power . | . . . Propulsion . | . . . Utility . | . . . Weapon . | . . . Parts Attached 12 | . 6 6 Power 2 | . 2 . Engine 2 | . 2 . Core . | . . . Reactor . | . . . Propulsion 3 | . . 3 Treads 3 | . . 3 Leg . | . . . Wheel . | . . . Hover . | . . . Flight . | . . . Utility 2 | . 2 . Device . | . . . Storage 1 | . 1 . Processor 1 | . 1 . Hackware . | . . . Protection . | . . . Artifact . | . . . Weapon 5 | . 2 3 Energy Gun . | . . . Energy Cannon 2 | . 1 1 Ballistic Gun 2 | . 1 1 Ballistic Cannon . | . . . Launcher 1 | . . 1 Special Weapon . | . . . Impact Weapon . | . . . Slashing Weapon . | . . . Piercing Weapon . | . . . Special Melee Weapon . | . . . Unidentified Prototypes . | . . . Parts Lost 6 | . . 6 Power . | . . . Propulsion 3 | . . 3 Utility . | . . . Weapon 3 | . . 3 Highest Loss Streak 5 | . . 5 To Critical Strikes . | . . . Average Backups 8 | . 8 8 Power . | . . 1 Propulsion 2 | . 2 2 Utility . | . . . Weapon 3 | . 3 4 Tool/Special . | . . . Unused Backups 11 | . 7 4 Power 1 | . 1 . Propulsion 6 | . 4 2 Utility 1 | . 1 . Weapon 2 | . 1 1 Tool/Special 1 | . . 1 Average Slot Usage (%) 97 | . 96 99 Engine 13 | . 13 14 Treads 2 | . . 9 Leg 25 | . 28 18 Storage 14 | . 14 14 Processor 11 | . 11 14 Energy Cannon 12 | . 12 12 Ballistic Gun 12 | . 15 6 Launcher 2 | . . 9 Peak Build Rating 8 | . 8 8 Average Rating 6 | . 6 7 On Entrance 6 | 6 6 8 Naked Turns . | . . . Heaviest Build 20 | 13 20 19 Greatest Support 40 | 20 20 40 Greatest Overweight (x) . | . . . Average Overweight (x) . | . . . Largest Inventory Capacity 10 | . 10 10 Average Capacity 8 | . 8 10 Most Carried 10 | . 10 10 Average Carried 8 | . 8 8 Final Capacity 10 | 8 10 10 Final Carried 10 | 6 10 4 Class Distribution -------------------- 100% | Mutant Dominant Class ---------------- Mutant | -10/Materials Mutant | -10/Mines Resources | -11 -10 -10 ----------- Run | Yrd Mat Min Matter Collected 498 | 200 243 55 Remotely . | . . . Salvage Created 876 | . 722 154 Parts 58 | . 46 12 Haulers Intercepted 2 | . 2 . Recyclers Shooed 2 | . 2 . Parts Field Recycled . | . . . Retrieved Matter . | . . . Parts Self-Destructed . | . . . Prevented . | . . . Kills | -11 -10 -10 ------- Run | Yrd Mat Min Combat Hostiles Destroyed 24 | . 15 9 Guns 10 | . 6 4 Cannons 10 | . 9 1 AOE 4 | . . 4 Classes Destroyed 8 | . 6 2 Hauler 2 | . 2 . Recycler 2 | . 2 . Operator 1 | . 1 . Watcher 2 | . 2 . Swarmer 12 | . 9 3 Grunt 9 | . 6 3 Demolisher 1 | . . 1 Assembled 2 | . . 2 Best Kill Streak 4 | . 4 3 Combat Bots Only 3 | . 3 3 Max Kills in Single Turn 3 | . 1 3 Gunslinging . | . . . Exploded 2 | . . 2 Melee . | . . . Uniques/NPCs Destroyed . | . . . Combat | -11 -10 -10 -------- Run | Yrd Mat Min Hostile Shots Fired 83 | . 54 29 Missed 24 | . 17 7 Hits 59 | . 37 22 Melee 1 | . . 1 Projectile 58 | . 37 21 AOE 15 | . . 15 Critical Strikes 1 | . 1 . Damage Taken 1047 | . 339 708 Core 278 | . 44 234 Absorbed by Shields . | . . . Core Remaining (%) 100 | 100 . . Volleys Fired 76 | . 62 14 Largest 2 | . 2 2 Hottest 90 | . 80 90 Shots Fired 149 | . 123 26 Gun 74 | . 62 12 Cannon 71 | . 61 10 Launcher 4 | . . 4 Special . | . . . Kinetic 74 | . 62 12 Thermal 71 | . 61 10 Explosive 4 | . . 4 Electromagnetic . | . . . Robot Hit Streak 10 | . 10 7 Robot Miss Streak 6 | . 6 3 Penetration Max . | . . . Secondary Targets . | . . . Shots Hit Robots 79 | . 64 15 Core Hits 43 | . 29 14 Critical Kills . | . . . Critical Parts Destroyed . | . . . Critical Strikes . | . . . Melee Attacks . | . . . Impact . | . . . Slashing . | . . . Piercing . | . . . Sneak Attacks . | . . . Combat Hostiles . | . . . Follow-up Attacks . | . . . Damage Inflicted 1428 | . 1029 399 Guns 480 | . 424 56 Cannons 710 | . 604 106 Explosions 236 | . . 236 Melee . | . . . Ramming 2 | . 1 1 Kinetic 480 | . 424 56 Thermal 710 | . 604 106 Explosive 236 | . . 236 Electromagnetic . | . . . Impact . | . . . Slashing . | . . . Piercing . | . . . Highest Corruption . | . . . Average Corruption . | . . . Corruption Purged . | . . . Corruption Blocked . | . . . Overload Shots . | . . . Overflow Damage . | . . . Projectiles . | . . . Explosions . | . . . Melee . | . . . Knockbacks . | . . . Impact . | . . . Kinetic . | . . . Secondary . | . . . Self-Inflicted Damage 24 | . . 24 Shots 1 | . . 1 Rammed . | . . . Targets Rammed 2 | . 1 1 Kicked 2 | . 1 1 Crushed . | . . . Highest Temperature 165 | . 165 100 Average Temperature 43 | . 43 43 Received Heat Transfer 108 | . 90 18 Siege Activations . | . . . Martial Activations . | . . . Shielding Activations . | . . . Robots Disrupted . | . . . Combat Hostiles . | . . . Robots Corrupted . | . . . Combat Hostiles . | . . . Parts Fried . | . . . Impact Corruptions . | . . . Robots Melted . | . . . Combat Hostiles . | . . . Parts Melted . | . . . Heat Transferred 1480 | . 1258 222 Parts Sabotaged . | . . . Parts Stolen . | . . . Parts Stripped . | . . . Power Chain Reactions . | . . . Alert | -11 -10 -10 ------- Run | Yrd Mat Min Maximum Alert Level . | . . . Low Security (%) 100 | . 100 100 Level 1 . | . . . Level 2 . | . . . Level 3 . | . . . Level 4 . | . . . Level 5 . | . . . High Security . | . . . Max Security . | . . . Peak Influence 187 | . 187 184 Initial 58 | . . 58 Average 102 | . 100 107 Influence Increases 765 | . 549 216 Destroy 0b10 Robot/C 440 | . 300 140 Destroy 0b10 Robot/NC 35 | . 35 . Destroy Leader 108 | . 78 30 Successful Hack 30 | . 30 . Select Force Hacks 30 | . 30 . Disable Machine 45 | . 15 30 Destroy Structure 17 | . 1 16 Lose Combat Pursuer 60 | . 60 . Influence Decreases 745 | . 398 347 Entered New Map 93 | . . 93 Time Decay 552 | . 398 154 Lost Part 60 | . . 60 Lost Ally 40 | . . 40 Squads Dispatched 3 | . 3 . Investigation 3 | . 3 . Extermination . | . . . Reinforcement . | . . . Assault . | . . . Garrison . | . . . Intercept . | . . . Searches Triggered . | . . . Construction Impeded . | . . . Haulers Reinforced . | . . . Active Scanning Responses . | . . . Cargo Convoy Interrupts . | . . . Stealth | -11 -10 -10 --------- Run | Yrd Mat Min Distress Signals 3 | . 3 . Communications Jammed . | . . . Distress Signals . | . . . Times Spotted 37 | . 24 13 Peak Tracking Total 5 | . 5 3 Tactical Retreats 3 | . 3 . Traps | -11 -10 -10 ------- Run | Yrd Mat Min Traps Triggered 2 | . 2 . Indirectly . | . . . Trap Hack Attempts . | . . . Triggered . | . . . Disarmed 6 | . 6 . Reprogrammed . | . . . Reused . | . . . Traps Extracted . | . . . Installed . | . . . Triggered . | . . . Machines | -11 -10 -10 ---------- Run | Yrd Mat Min Machines Disabled 4 | . 2 2 Max in Single Turn 2 | . 1 2 Machines Repaired . | . . . Machines Dismantled . | . . . Machines Sabotaged . | . . . Overloaded Fab Kills . | . . . Hacking | -11 -10 -10 --------- Run | Yrd Mat Min Machines Accessed 7 | . 7 . Terminals 6 | . 6 . Fabricators . | . . . Repair Stations . | . . . Recycling Units 1 | . 1 . Scanalyzers . | . . . Garrison Access . | . . . Total Hacks 20 | . 20 . Successful 8 | . 8 . Failed 12 | . 12 . Catastrophic 1 | . 1 . Database Lockouts . | . . . Manual 17 | . 17 . Terminals 19 | . 19 . Fabricators . | . . . Repair Stations . | . . . Recycling Units 1 | . 1 . Scanalyzers . | . . . Garrison Access . | . . . Terminal Hacks 5 | . 5 . Robot Analysis 2 | . 2 . Prototype ID Bank 1 | . 1 . Locate Traps 1 | . 1 . Disarm Traps 1 | . 1 . Fabricator Hacks . | . . . Repair Station Hacks . | . . . Recycling Unit Hacks . | . . . Scanalyzer . | . . . Garrison Access Hacks . | . . . Unauthorized Hacks 3 | . 3 . Terminals 2 | . 2 . Botnet 2 | . 2 . Fabricators . | . . . Repair Stations . | . . . Recycling Units 1 | . 1 . Tunnel 1 | . 1 . Scanalyzers . | . . . Garrison Access . | . . . Data Cores Recovered 1 | . 1 . Used . | . . . Hacking Detections 6 | . 6 . Full Trace Events 1 | . 1 . Feedback Events . | . . . Feedback Blocked . | . . . Robot Schematics Acquired . | . . . Robots Built . | . . . Authchips . | . . . Time . | . . . Total Robot Build Rating . | . . . Part Schematics Acquired . | . . . Parts Built . | . . . Authchips . | . . . Time . | . . . Total Part Build Rating . | . . . Parts Repaired . | . . . Time . | . . . Parts Recycled . | . . . Recycled Matter . | . . . Retrieved Matter . | . . . Retrieved Components . | . . . Parts Scanalyzed . | . . . Part Schematics Acquired . | . . . Parts Damaged . | . . . Bothacking | -11 -10 -10 ------------ Run | Yrd Mat Min Used RIF Installer . | . . . Robots Hacked . | . . . Non-combat . | . . . Combat . | . . . Robot Hacks Applied . | . . . Relay Couplers Released . | . . . Fabnet Peak Effective % . | . . . Robots Rewired . | . . . Allies Hacked . | . . . Hacks Repelled . | . . . Allies | -11 -10 -10 -------- Run | Yrd Mat Min Total Allies 2 | . . 2 Largest Group 2 | . . 2 Highest-Rated Group 24 | . . 24 Highest-Rated Ally 16 | . . 16 Total Orders . | . . . Ally Attacks 12 | . . 12 Total Damage 90 | . . 90 Kills 1 | . . 1 Allies Corrupted . | . . . Allies Melted . | . . . Intel | -11 -10 -10 ------- Run | Yrd Mat Min Active Infowar (turns) . | . . . Robot Analysis Total 2 | . 2 . Derelict Logs Recovered 1 | . . 1 Drone Launches . | . . . Drone Recoveries . | . . . Exploration | -11 -10 -10 ------------- Run | Yrd Mat Min Turns Passed 1399 | . 1062 337 Spaces Moved 902 | 1 681 220 Core . | . . . Treads 51 | . . 51 Legs 851 | 1 681 169 Wheels . | . . . Hover . | . . . Flight . | . . . Fastest Speed 120 | 120 120 120 Average Speed 122 | 120 120 129 Slowest Speed 160 | 120 120 160 Overloaded Moves . | . . . Propulsion Burnouts . | . . . Robots Hopped . | . . . Potential Cave-ins . | . . . Cave-ins Triggered . | . . . Exploration Rate (%) 46 | 2 94 43 Regions Visited 2 Branch Regions 1 Pre-discovered Areas 1 | . 1 . Known Exits Taken . | . . . Unknown Exits Taken 2 | 1 1 . Scrap Searched . | . . . Spaces Dug . | . . . Terrain Destroyed 16 | . . 16 Melee . | . . . Projectile . | . . . AOE 16 | . . 16 Terrain Rammed . | . . . Walls Destroyed . | . . . Machines Disabled . | . . . Actions | -11 -10 -10 --------- Run | Yrd Mat Min Total 1053 | . 804 249 Wait 49 | . 42 7 Move 900 | . 680 220 Hop . | . . . Pick Up 7 | . 7 . Fast Attach 3 | . 3 . Attach 7 | . 1 6 Detach 1 | . 1 . Swap 3 | . 2 1 Drop 5 | . 5 . Fire 76 | . 62 14 Melee . | . . . Ram . | . . . Kick 2 | . 1 1 Crush . | . . . Escape Stasis . | . . . Rewire . | . . . Trap . | . . . Miscellaneous . | . . . Route ------- -11/Scrapyard -10/Materials (discovered 6 exits: [*Mat x3] / [*Min x2] / [*Sub]) -10/Mines (discovered 1 exit: [*Mat]) History --------- Turn | Location | Event 1 | -11/Scrapyard | Discovered new exit (range 0) 1 | -11/Scrapyard | Entered Materials 110 | -10/Materials | Discovered new exit (range 10) 291 | -10/Materials | Discovered new exit (range 16) 314 | -10/Materials | Build established: Mutant 375 | -10/Materials | Discovered new exit (range 8) 581 | -10/Materials | Discovered new exit (range 16) 937 | -10/Materials | Discovered new exit (range 7) 961 | -10/Materials | Discovered new exit (range 16) 1063 | -10/Materials | Entered Mines 1091 | -10/Mines | Learned 4 Materials zone layouts 1145 | -10/Mines | Discovered new exit (range 11) 1270 | -10/Mines | Assembled infested the area 1292 | -10/Mines | Core integrity fell below 50% 1296 | -10/Mines | Core integrity fell below 20% 1303 | -10/Mines | Assisted by bots powering up and referring to "LRC-V3" 1326 | -10/Mines | Lost 5 parts (3n2w) 1400 | -10/Mines | Destroyed by as-98666 with Assembled Blade Last Messages --------------- 01329_ R-06 Scavenger heat damages Com. Wheel, Com. Wheel, Tractor Beam. 01331_ The unstable cave ceiling collapses. 01332_ U-05 Engineer lays Concrete. 01333_ K-01 Serf collects debris. 01334_ U-05 Engineer builds a Wall. 01336_ K-01 Serf collects debris. 01337_ Assault Rifle destroyed. 01337_ K-01 Serf collects debris. 01338_ U-05 Engineer lays Concrete. 01339_ R-06 Scavenger heat short circuits Lgt. Ion Engine. 01339_ U-05 Engineer lays Concrete. 01340_ K-01 Serf collects debris. 01340_ U-05 Engineer builds a Wall. 01340_ as-93951 destroyed. 01344_ as-83194 destroyed. 01353_ Trooper 1a destroyed. 01355_ Mercenary 1a destroyed. 01361_ Acquired 8 matter. 01365_ G-47 Trooper destroyed. 01396_ as-42589 destroyed. Map ----- +----------------------------------------------------+ | ????????????????????## # #????? | | ???????####???????### = # #????? | | ????#### ##?????## %*### # ## #????? | | ???## #?????# ## #????? | | ???# ####### [ # # #????? | | ???# % """% # # #????? | | ????# """ ## # #????? | | ????# ### #### """ ## #???? | | ????# ##?# #??# """ # "" #???? | | ???## #?## #??# # "" #???? | | ??## ### ##?## ##### "" #???? | | ??# ## ##?## ##???# #???? | | ??# ## ##?#### ##????#######???? | | ??## ### ##???# ##???????????????? | | ???### #?## ##??# #????????????????? | | ?????# #??### #### #????????????????? | | ?????# #????### #?#####??????????? | | ?????# ####???## ####### ???????????? | | ?????# #????## #?????# ????????????? | | ?????#### #?????# ##????# #????????????? | | ????????# #?????## ###??# #????????????? | | ????????#%######## #### #????????????? | | ????????# % ## ########?????? | | ????????# %! #?????? | | ????????######### t % #?????? | | ???????####?????#@a ###?????????? | | ??????## ##????# #???? ??????? | | ?????## ###### ### ##??? ??????? | | ???### ## ##?## ##?? ??????? | | ??## ###??## #?? ??????? | | ??# ###### #?? ??????? | | ??# ## ##?? ??????? | | ??## ##### # ## #??? ??????? | | ???## ###?## # #### #??? ##????? | | ??## ###### ## #??# #??? #????? | | ??# #??## ### #??# #??? #????? | | ??# " #????####?# #?# #???# #????? | | ??# #?????????# #?# #???# #????? | | ??# " #?????????####??# ##### #????? | | ??# #???????????????# #????? | | ??# < #???????????????####### ###### | | ??# #?????????????????????# | | ??###########?????????????????????# | | ??????????????????????????????????######## | | ?????????????????????????????????????????? | | ?????????????????????????????????????????? | | ?????????????????????????????????????????? | | | | | | | +----------------------------------------------------+ Best States ------------- Heat Dissipation 25 Energy Generation 10 Energy Capacity 250 Matter Stores 300 Matter Capacity 300 Sight Range 16 Terrain Scan Density 10 Evasion (%) 55 Targeting Accuracy 5 Recoil Reduction 2 Item Schematics ----------------- None Robot Schematics ------------------ None Fabricated ------------ Nothing Repaired ---------- Nothing Alien Tech Used ----------------- None Achievements -------------- None Challenges ------------ None Game ------ Seed BottomlessElectronRedirector Manual? 0 Play Time 00:14:27 Cumulative 295.9 hours Start 2025.05.25 @ 19:29:06 End 2025.05.25 @ 19:40:49 Sessions 1 Manual Loads 0 Difficulty Rogue Special Mode None Game No. 208 Rogue 208 Adventurer 0 Explorer 0 Win Type - Total 23 Types 18/0/3/2/0/0/0/0/0/0 Lore% 85 Gallery% 72 Achievement% 64 Wizard Run 0 Options --------- Layout 0 ASCII 1 Keyboard 1 Movement Arrows Keybinds 0 Fullscreen 1 Font 18/Terminus Map View 76x50 Zoom Use 0% Tactical HUD 1 Map Filters NONE Filters NONE Steam 1 RUN: 18d7051f-82a4-45bd-af2c-119e8f6284c3